Cogmind - Beta 16.1 @@@ ROGUE MODE // 2026.03.27 @ 13:32:05 Player: CL-1C0 Result: Destroyed by G-50 Soldier with Heavy Laser Performance ------------- Evolutions (2) 1000 Regions Visited (6) 1200 Robots Destroyed (77) 385 Value Destroyed (2961) 2961 Prototype IDs (0) 0 Alien Tech Used (0) 0 Bonus (2641) 2641 TOTAL SCORE: 8187 Bonus ------- High Alert Combat Kills 626 Follower Combat Kills 167 Entered Garrisons 400 Used RIF Installer 1500 Friendly Fire -52 Cogmind --------- Core Integrity 0/550 Matter 121/300 Energy 160/160 System Corruption 3% Temperature Cool (18) Movement Treading (160) Location -8/Garrison Parts ------- > --- POWER (1) -------- Light Nuclear Core > --- PROPULSION (4) --- Light Treads Light Treads Light Treads Light Treads > --- UTILITY (4) ------ Improved Heat Sink Large Storage Unit Medium Armor Plating Relay Coupler [Sentry] (29) > --- WEAPON (2) ------- Assault Cannon Mini Grenade Launcher > --- INVENTORY (15) --- Light Nuclear Core Light Armor Plating Relay Coupler [NC] (29) Relay Coupler [NC] (34) Relay Coupler [Swarmer] (30) Relay Coupler [Swarmer] (32) Relay Coupler [Brawler] (28) Relay Coupler [Demolisher] (29) Relay Coupler [Demolisher] (26) Relay Coupler [Behemoth] (14) Assault Cannon Datajack Remote Datajack Remote Datajack Heavy Flail Peak State ------------ > --- POWER ------------ Light Nuclear Core > --- PROPULSION ------- Light Treads Light Treads Light Treads Light Treads > --- UTILITY ---------- Improved Heat Sink Large Storage Unit Medium Armor Plating Relay Coupler [Sentry] > --- WEAPON ----------- Assault Cannon Assault Cannon > --- INVENTORY -------- Light Nuclear Core Light Armor Plating Light Armor Plating Relay Coupler [NC] Relay Coupler [Swarmer] Relay Coupler [Swarmer] Relay Coupler [Brawler] Relay Coupler [Demolisher] Relay Coupler [Demolisher] Relay Coupler [Behemoth] Mini Grenade Launcher Datajack Remote Datajack Remote Datajack Heavy Flail [Rating: 27] Favorites ----------- Power Light Nuclear Core Engine Ion Engine Power Core Light Nuclear Core Propulsion Light Treads Treads Light Treads Leg Aluminum Leg Wheel Wheel Utility Light Armor Plating Device Improved Heat Sink Storage Small Storage Unit Hackware Relay Coupler [Sentry] Protection Light Armor Plating Weapon Katana Energy Gun Particle Gun Ballistic Gun Light Assault Rifle Ballistic Cannon Assault Cannon Launcher Mini Grenade Launcher Impact Weapon Heavy Flail Slashing Weapon Katana Build | -11 -10 -9 -8 -8 -8 -8 ------- Run | Yrd Mat Mat Mat Gar Mat Gar Slots Evolved 4 | . . 2 2 . . . Power . | . . . . . . . Propulsion 2 | . . 1 1 . . . Utility 2 | . . 1 1 . . . Weapon . | . . . . . . . Parts Attached 57 | . 1 1 8 31 7 9 Power 7 | . . . 1 3 1 2 Engine . | . . . . . . . Core 7 | . . . 1 3 1 2 Reactor . | . . . . . . . Propulsion 19 | . . 1 3 14 . 1 Treads 8 | . . . 2 5 . 1 Leg 8 | . . . . 8 . . Wheel 3 | . . 1 1 1 . . Hover . | . . . . . . . Flight . | . . . . . . . Utility 15 | . 1 . 2 5 3 4 Device 6 | . 1 . 2 2 . 1 Storage 1 | . . . . . 1 . Processor . | . . . . . . . Hackware 1 | . . . . . . 1 Protection 7 | . . . . 3 2 2 Artifact . | . . . . . . . Weapon 16 | . . . 2 9 3 2 Energy Gun 2 | . . . 1 1 . . Energy Cannon . | . . . . . . . Ballistic Gun 7 | . . . 1 6 . . Ballistic Cannon 3 | . . . . . 2 1 Launcher 2 | . . . . 1 . 1 Special Weapon . | . . . . . . . Impact Weapon 1 | . . . . . 1 . Slashing Weapon 1 | . . . . 1 . . Piercing Weapon . | . . . . . . . Special Melee Weapon . | . . . . . . . Unidentified Prototypes . | . . . . . . . Parts Lost 22 | . . 2 1 16 2 1 Power 3 | . . . . 2 1 . Propulsion 10 | . . 1 . 8 . 1 Utility 6 | . . 1 1 3 1 . Weapon 3 | . . . . 3 . . Highest Loss Streak 8 | . . 2 1 8 1 1 To Critical Strikes . | . . . . . . . Average Backups 8 | . 7 7 7 7 8 12 Power . | . 1 1 1 . . . Propulsion . | . 4 3 1 . . . Utility 4 | . . . . 4 5 7 Weapon 2 | . 1 2 3 1 2 2 Tool/Special . | . . . . . . . Unused Backups 21 | . . . 8 1 1 11 Power 2 | . . . 2 . . . Propulsion 1 | . . . . 1 . . Utility 8 | . . . . . . 8 Weapon 7 | . . . 6 . 1 . Tool/Special 3 | . . . . . . 3 Average Slot Usage (%) 86 | . 94 80 76 81 98 92 Engine 1 | . 14 11 4 . . . Core 6 | . . . 4 7 8 4 Treads 17 | . . . 17 11 36 33 Leg 11 | . 28 20 . 15 . . Wheel 2 | . . 5 17 3 . . Device 6 | . 8 10 5 8 . 3 Storage 9 | . 14 11 9 9 9 9 Protection 11 | . . . . 8 26 20 Energy Gun 3 | . 14 11 9 2 1 . Ballistic Gun 6 | . 14 11 9 9 . . Ballistic Cannon 3 | . . . . . 7 12 Impact Weapon 1 | . . . . . 3 5 Slashing Weapon 2 | . . . . 4 5 . Peak Build Rating 27 | . 7 8 20 24 20 27 Average Rating 17 | . 6 7 13 17 19 21 On Entrance 11 | 6 6 7 6 17 19 17 Avg Prop Armor Cover (%) 12 | . . 5 19 10 . . Naked Turns . | . . . . . . . Heaviest Build 48 | 12 13 13 20 26 46 48 Greatest Support 80 | 20 20 20 20 80 80 80 Greatest Overweight (x) 1 | . . 1 . 1 . . Average Overweight (x) . | . . . . . . . Largest Inventory Capacity 15 | . 8 8 8 8 15 15 Average Capacity 9 | . 8 8 8 8 8 15 Most Carried 15 | . 8 8 8 8 9 15 Average Carried 8 | . 7 7 7 7 8 12 Final Capacity 15 | 8 8 8 8 8 15 15 Final Carried 15 | 6 8 8 8 8 9 15 Class Distribution -------------------- 58% | Scavenger-Mutant 23% | Bothacker-Mutant 17% | Mutant Dominant Class ---------------- Mutant | -10/Materials Mutant | -9/Materials Mutant | -8/Materials Scavenger-Mutant | -8/Garrison Scavenger-Mutant | -8/Materials Bothacker-Mutant | -8/Garrison Resources | -11 -10 -9 -8 -8 -8 -8 ----------- Run | Yrd Mat Mat Mat Gar Mat Gar Matter Collected 1829 | 200 10 12 116 939 145 407 Remotely . | . . . . . . . Salvage Created 2116 | . 42 44 298 1228 151 353 Parts 139 | . 6 4 14 83 13 19 Haulers Intercepted . | . . . . . . . Recyclers Shooed . | . . . . . . . Parts Field Recycled . | . . . . . . . Retrieved Matter . | . . . . . . . Parts Self-Destructed . | . . . . . . . Prevented . | . . . . . . . Parts Restored . | . . . . . . . Kills | -11 -10 -9 -8 -8 -8 -8 ------- Run | Yrd Mat Mat Mat Gar Mat Gar Combat Hostiles Destroyed 74 | . 3 3 4 45 8 11 Melee 3 | . . . . 3 . . Guns 29 | . 3 3 4 19 . . Cannons 18 | . . . . . 8 10 AOE 24 | . . . . 23 . 1 Classes Destroyed 8 | . 2 . 3 2 . 1 Recycler 2 | . . . 2 . . . Operator 1 | . 1 . . . . . Swarmer 31 | . 3 3 1 21 3 . Grunt 27 | . . . 2 17 2 6 Brawler 2 | . . . . 2 . . Duelist 2 | . . . 1 . 1 . Sentry 9 | . . . . 5 2 2 Programmer 3 | . . . . . . 3 Best Kill Streak 8 | . 3 3 5 8 4 5 Combat Bots Only 8 | . 3 3 3 8 4 5 Max Kills in Single Turn 4 | . 1 1 1 4 1 1 Gunslinging 1 | . . . . 1 . . Exploded 4 | . . . . 4 . 1 Melee 1 | . . . . 1 . . Uniques/NPCs Destroyed . | . . . . . . . Combat | -11 -10 -9 -8 -8 -8 -8 -------- Run | Yrd Mat Mat Mat Gar Mat Gar Hostile Shots Fired 350 | . 14 46 29 186 36 39 Missed 96 | . 3 17 9 48 9 10 Hits 254 | . 11 29 20 138 27 29 Melee 2 | . . . 2 . . . Projectile 252 | . 11 29 18 138 27 29 Critical Strikes 9 | . . 1 2 3 1 2 Damage Taken 3745 | . 88 309 294 2214 400 440 Core 648 | . 14 66 27 444 48 49 Absorbed by Shields 23 | . . . . 23 . . Core Remaining (%) 92 | 100 94 83 . . . . Volleys Fired 182 | . 16 7 18 87 31 23 Largest 2 | . 2 2 2 2 1 2 Hottest 88 | . 60 60 86 88 37 74 Shots Fired 313 | . 32 14 36 155 32 44 Gun 221 | . 32 14 36 138 1 . Cannon 73 | . . . . . 31 42 Launcher 19 | . . . . 17 . 2 Special . | . . . . . . . Kinetic 248 | . 16 7 18 134 31 42 Thermal 46 | . 16 7 18 4 1 . Explosive 19 | . . . . 17 . 2 Electromagnetic . | . . . . . . . Robot Hit Streak 12 | . 5 2 12 9 11 10 Robot Miss Streak 7 | . 3 3 5 7 5 3 Penetration Max . | . . . . . . . Secondary Targets 4 | . 1 1 . 2 . . Max Gunslinging Chain 1 | . 1 1 . 1 . . Shots Hit Robots 216 | . 19 6 22 107 32 30 Core Hits 150 | . 8 4 12 80 28 18 Critical Kills 1 | . . . . 1 . . Critical Parts Destroyed 1 | . . . . 1 . . Critical Strikes 4 | . . . . 2 . 2 Destroy 2 | . . . . 2 . . Blast 2 | . . . . . . 2 Melee Attacks 72 | . . . . 61 2 9 Impact 11 | . . . . . 2 9 Slashing 61 | . . . . 61 . . Piercing . | . . . . . . . Sneak Attacks 1 | . . . . . . 1 Combat Hostiles . | . . . . . . . Follow-up Attacks . | . . . . . . . Damage Inflicted 5231 | . 195 75 327 3016 555 1063 Guns 1839 | . 180 75 327 1257 . . Cannons 1200 | . . . . . 497 703 Explosions 1807 | . . . . 1528 . 279 Melee 354 | . . . . 228 45 81 Ramming 31 | . 15 . . 3 13 . Kinetic 2652 | . 79 19 142 1212 497 703 Thermal 387 | . 101 56 185 45 . . Explosive 1807 | . . . . 1528 . 279 Electromagnetic . | . . . . . . . Impact 126 | . . . . . 45 81 Slashing 228 | . . . . 228 . . Piercing . | . . . . . . . Highest Corruption 3 | . . . . 1 1 3 Average Corruption 1 | . . . . 1 1 2 Corruption Purged . | . . . . . . . Corruption Blocked . | . . . . . . . Effects 19 | . . . . 3 4 12 Message Errors 4 | . . . . 1 . 3 Matter Fused 6 | . . . . 1 1 4 Heat Flow Errors 3 | . . . . 1 1 1 Energy Discharges 2 | . . . . . 1 1 Data Loss (minor) 3 | . . . . . . 3 Misfires 1 | . . . . . 1 . Overload Shots . | . . . . . . . Overflow Damage 102 | . . . . 51 . 51 Projectiles . | . . . . . . . Explosions 51 | . . . . 51 . . Melee 51 | . . . . . . 51 Knockbacks 21 | . . . . . 19 2 Impact . | . . . . . . . Kinetic 21 | . . . . . 19 2 Secondary . | . . . . . . . Self-Inflicted Damage 282 | . . . . 282 . . Shots 10 | . . . . 10 . . Rammed 5 | . . . . 1 4 . Targets Rammed 11 | . 6 . . 1 4 . Kicked 6 | . 6 . . . . . Crushed . | . . . . . . . Highest Temperature 498 | . 40 28 39 262 171 498 Average Temperature 83 | . 21 12 20 83 36 183 Received Heat Transfer 1508 | . . 123 144 854 171 216 Effects 3 | . . . . . . 3 Shutdowns 1 | . . . . . . 1 Energy Bleed 1 | . . . . . . 1 Matter Decay 1 | . . . . . . 1 Siege Activations . | . . . . . . . Martial Activations . | . . . . . . . Shielding Activations . | . . . . . . . Robots Disrupted . | . . . . . . . Combat Hostiles . | . . . . . . . Robots Corrupted . | . . . . . . . Combat Hostiles . | . . . . . . . Parts Fried . | . . . . . . . Impact Corruptions 1 | . . . . . . 1 Robots Melted . | . . . . . . . Combat Hostiles . | . . . . . . . Parts Melted 2 | . 1 1 . . . . Heat Transferred 869 | . 225 125 408 111 . . Parts Sabotaged . | . . . . . . . Parts Stolen . | . . . . . . . Parts Stripped . | . . . . . . . Power Chain Reactions . | . . . . . . . Alert | -11 -10 -9 -8 -8 -8 -8 ------- Run | Yrd Mat Mat Mat Gar Mat Gar Maximum Alert Level 4 | . . . . 4 3 3 Low Security (%) 18 | . 100 100 100 2 . . Level 1 6 | . . . . 12 . . Level 2 40 | . . . . 39 69 62 Level 3 17 | . . . . 13 30 37 Level 4 17 | . . . . 33 . . Level 5 . | . . . . . . . High Security . | . . . . . . . Max Security . | . . . . . . . Peak Influence 1455 | . 70 70 95 1455 775 799 Initial 709 | . . 1 . 55 709 471 Average 612 | . 19 27 24 788 696 621 Influence Increases 2526 | . 81 76 145 1580 216 428 Destroy 0b10 Robot/C 1620 | . 60 60 80 960 160 300 Destroy 0b10 Robot/NC 15 | . 5 . 10 . . . Destroy Leader 110 | . 10 10 10 20 40 20 Allied During Kill 31 | . . . . 10 . 21 Successful Hack 40 | . 6 6 . 21 . 7 Anti-Garrison Action 450 | . . . . 400 . 50 Destroy Structure 185 | . . . . 154 1 30 Lose Combat Pursuer 75 | . . . 45 15 15 . Influence Decreases 1717 | . 76 81 60 210 946 344 Entered New Map 1034 | . . 4 . 30 746 254 Time Decay 363 | . 76 57 50 . 180 . Lost Part 220 | . . 20 10 160 20 10 Lost Ally 100 | . . . . 20 . 80 Squads Dispatched 5 | . 2 1 . . 2 . Investigation . | . . . . . . . Extermination . | . . . . . . . Reinforcement 3 | . 2 1 . . . . Assault . | . . . . . . . Garrison 2 | . . . . . 2 . Intercept . | . . . . . . . Searches Triggered . | . . . . . . . Construction Impeded . | . . . . . . . Haulers Reinforced . | . . . . . . . Active Scanning Responses . | . . . . . . . Cargo Convoy Interrupts . | . . . . . . . Stealth | -11 -10 -9 -8 -8 -8 -8 --------- Run | Yrd Mat Mat Mat Gar Mat Gar Distress Signals 4 | . . 2 1 . 1 . Communications Jammed . | . . . . . . . Distress Signals . | . . . . . . . Times Spotted 100 | . 6 10 8 50 12 14 Peak Tracking Total 6 | . 3 5 4 6 5 4 Tactical Retreats 4 | . . . 2 1 1 . Traps | -11 -10 -9 -8 -8 -8 -8 ------- Run | Yrd Mat Mat Mat Gar Mat Gar Traps Triggered 5 | . . . . 5 . . Indirectly . | . . . . . . . Trap Hack Attempts . | . . . . . . . Triggered . | . . . . . . . Disarmed . | . . . . . . . Reprogrammed . | . . . . . . . Reused . | . . . . . . . Traps Extracted . | . . . . . . . Installed . | . . . . . . . Triggered . | . . . . . . . Machines | -11 -10 -9 -8 -8 -8 -8 ---------- Run | Yrd Mat Mat Mat Gar Mat Gar Machines Disabled 3 | . . . . 2 . 1 Max in Single Turn 1 | . . . . 1 . 1 Garrison Relay 3 | . . . . 2 . 1 Machines Repaired . | . . . . . . . Machines Dismantled . | . . . . . . . Machines Sabotaged . | . . . . . . . Overloaded Fab Kills . | . . . . . . . Hacking | -11 -10 -9 -8 -8 -8 -8 --------- Run | Yrd Mat Mat Mat Gar Mat Gar Machines Accessed 12 | . 2 2 1 4 2 1 Terminals 10 | . 2 2 . 4 1 1 Fabricators . | . . . . . . . Repair Stations . | . . . . . . . Recycling Units . | . . . . . . . Scanalyzers . | . . . . . . . Garrison Access 2 | . . . 1 . 1 . Total Hacks 20 | . 5 3 1 8 2 1 Successful 8 | . 1 1 1 2 2 1 Failed 12 | . 4 2 . 6 . . Catastrophic 5 | . 1 1 . 3 . . Database Lockouts . | . . . . . . . Manual 8 | . 5 3 . . . . Terminals 18 | . 5 3 . 8 1 1 Fabricators . | . . . . . . . Repair Stations . | . . . . . . . Recycling Units . | . . . . . . . Scanalyzers . | . . . . . . . Garrison Access 2 | . . . 1 . 1 . Terminal Hacks 4 | . . . . 2 1 1 Open Door 2 | . . . . 1 . 1 Emergency Access Points 1 | . . . . 1 . . Zone Layout 1 | . . . . . 1 . Fabricator Hacks . | . . . . . . . Repair Station Hacks . | . . . . . . . Recycling Unit Hacks . | . . . . . . . Scanalyzer . | . . . . . . . Garrison Access Hacks 2 | . . . 1 . 1 . Unlock Access 2 | . . . 1 . 1 . Unauthorized Hacks 2 | . 1 1 . . . . Terminals 2 | . 1 1 . . . . Operators 2 | . 1 1 . . . . Fabricators . | . . . . . . . Repair Stations . | . . . . . . . Recycling Units . | . . . . . . . Scanalyzers . | . . . . . . . Garrison Access . | . . . . . . . Data Cores Recovered . | . . . . . . . Used . | . . . . . . . Hacking Detections 8 | . 2 2 1 3 . . Full Trace Events 2 | . . . . 2 . . Feedback Events . | . . . . . . . Feedback Blocked . | . . . . . . . Robot Schematics Acquired . | . . . . . . . Robots Built . | . . . . . . . Authchips . | . . . . . . . Time . | . . . . . . . Total Robot Build Rating . | . . . . . . . Part Schematics Acquired . | . . . . . . . Parts Built . | . . . . . . . Authchips . | . . . . . . . Time . | . . . . . . . Total Part Build Rating . | . . . . . . . Part Studies Acquired . | . . . . . . . Parts Repaired . | . . . . . . . Time . | . . . . . . . Parts Recycled . | . . . . . . . Recycled Matter . | . . . . . . . Retrieved Matter . | . . . . . . . Retrieved Components . | . . . . . . . Parts Scanalyzed . | . . . . . . . Part Schematics Acquired . | . . . . . . . Parts Damaged . | . . . . . . . Bothacking | -11 -10 -9 -8 -8 -8 -8 ------------ Run | Yrd Mat Mat Mat Gar Mat Gar Used RIF Installer 3 | . . . . 1 . 2 Coupler Efficiency 1 | . . . . . . 1 Program Shield 1 | . . . . . . 1 Robots Hacked . | . . . . . . . Non-combat . | . . . . . . . Combat . | . . . . . . . Robot Hacks Applied . | . . . . . . . Relay Couplers Released 12 | . . . . 8 . 4 Machine Destruction 12 | . . . . 8 . 4 Attached 1 | . . . . . . 1 Fabnet Peak Effective % . | . . . . . . . Robots Rewired 3 | . . . . . . 3 Allies Hacked . | . . . . . . . Hacks Repelled . | . . . . . . . Allies | -11 -10 -9 -8 -8 -8 -8 -------- Run | Yrd Mat Mat Mat Gar Mat Gar Total Allies 6 | . . . . 1 . 5 Largest Group 3 | . . . . 1 . 3 Highest-Rated Group 70 | . . . . 39 . 70 Highest-Rated Ally 39 | . . . . 39 . 39 Total Orders 1 | . . . . . . 1 ROAM 1 | . . . . . . 1 Ally Attacks 28 | . . . . 10 . 18 Total Damage 432 | . . . . 160 . 272 Kills 7 | . . . . 3 . 4 Allies Corrupted 1 | . . . . . . 1 Allies Melted 1 | . . . . 1 . . Intel | -11 -10 -9 -8 -8 -8 -8 ------- Run | Yrd Mat Mat Mat Gar Mat Gar Active Infowar (turns) 322 | . 173 149 . . . . Structural 322 | . 173 149 . . . . Robot Analysis Total . | . . . . . . . Derelict Logs Recovered . | . . . . . . . Drone Launches . | . . . . . . . Drone Recoveries . | . . . . . . . Exploration | -11 -10 -9 -8 -8 -8 -8 ------------- Run | Yrd Mat Mat Mat Gar Mat Gar Turns Passed 3451 | . 263 161 177 1801 361 688 Spaces Moved 1794 | 1 152 112 124 927 159 319 Core . | . . . . . . . Treads 692 | . . . . 214 159 319 Legs 890 | 1 152 112 . 625 . . Wheels 212 | . . . 124 88 . . Hover . | . . . . . . . Flight . | . . . . . . . Fastest Speed 80 | 120 120 120 80 80 160 160 Average Speed 136 | 120 120 125 80 136 160 160 Slowest Speed 190 | 120 120 190 80 190 160 160 Overloaded Moves . | . . . . . . . Propulsion Burnouts . | . . . . . . . Robots Hopped . | . . . . . . . Potential Cave-ins 2 | . . . . 2 . . Cave-ins Triggered . | . . . . . . . Exploration Rate (%) 27 | 2 35 17 11 82 17 26 Regions Visited 6 Branch Regions . Pre-discovered Areas . | . . . . . . . Known Exits Taken 2 | . . . 1 . 1 . Unknown Exits Taken 3 | 1 1 1 . . . . Scrap Searched . | . . . . . . . Spaces Dug 39 | . . . . 33 1 5 Terrain Destroyed 110 | . . . . 93 1 16 Melee 20 | . . . . 14 1 5 Projectile 1 | . . . . . . 1 AOE 89 | . . . . 79 . 10 Terrain Rammed . | . . . . . . . Walls Destroyed . | . . . . . . . Machines Disabled . | . . . . . . . Actions | -11 -10 -9 -8 -8 -8 -8 --------- Run | Yrd Mat Mat Mat Gar Mat Gar Total 2369 | . 202 120 169 1213 229 436 Wait 123 | . 24 . 7 43 19 30 Move 1790 | . 151 111 124 926 159 319 Hop . | . . . . . . . Pick Up 27 | . 3 1 6 6 3 8 Fast Attach 28 | . 1 . 2 23 1 1 Attach 6 | . . 1 2 2 . 1 Detach 1 | . . . . 1 . . Swap 48 | . . . 4 26 6 12 Drop 29 | . 1 . 6 14 4 4 Fire 182 | . 16 7 18 87 31 23 Melee 72 | . . . . 61 2 9 Ram . | . . . . . . . Kick 6 | . 6 . . . . . Crush 5 | . . . . 1 4 . Escape Stasis 23 | . . . . 23 . . Rewire 29 | . . . . . . 29 Trap . | . . . . . . . Miscellaneous . | . . . . . . . Route ------- -11/Scrapyard -10/Materials -9/Materials -8/Materials -8/Garrison (discovered 4 exits: [*Fac x3] / *Mat) -8/Materials -8/Garrison History --------- Turn | Location | Event 1 | -11/Scrapyard | Discovered new exit (range 0) 1 | -11/Scrapyard | Entered Materials 240 | -10/Materials | Discovered new exit (range 11) 264 | -10/Materials | Entered another Materials area 264 | -9/Materials | Evolved 2 slots: Propulsion x1, Utility x1 300 | -9/Materials | Build established: Mutant 401 | -9/Materials | Discovered new exit (range 16) 425 | -9/Materials | Entered another Materials area 425 | -8/Materials | Evolved 2 slots: Propulsion x1, Utility x1 602 | -8/Materials | Identified exit to Garrison 602 | -8/Materials | Entered Garrison 616 | -8/Garrison | Triggered checkpoint 644 | -8/Garrison | Garrison Relay disabled 929 | -8/Garrison | Build established: Scavenger-Mutant 1061 | -8/Garrison | Discovered new exit (range 9) 1126 | -8/Garrison | Triggered checkpoint 1149 | -8/Garrison | Discovered new exit (range 5) 1202 | -8/Garrison | Triggered checkpoint 1252 | -8/Garrison | Core integrity fell below 50% 1276 | -8/Garrison | Lost 8 parts (1p3n2u2w) 1398 | -8/Garrison | Triggered checkpoint 1480 | -8/Garrison | Discovered new exit (range 14) 1595 | -8/Garrison | Destroyed 8 combat bots 1598 | -8/Garrison | Rescued a captive Derelict 1632 | -8/Garrison | Lost 4 parts (1p2n1u) 1668 | -8/Garrison | Triggered checkpoint 1672 | -8/Garrison | Garrison Relay disabled 1746 | -8/Garrison | Triggered checkpoint 1837 | -8/Garrison | Discovered new exit (range 10) 2340 | -8/Garrison | Installed Relay Interface Framework 2390 | -8/Garrison | Core integrity fell below 20% 2403 | -8/Garrison | Entered Materials 2648 | -8/Materials | Garrison activated, responded to threat 2764 | -8/Materials | Identified exit to Garrison 2764 | -8/Materials | Entered Garrison 2918 | -8/Garrison | Expanded RIF knowledge: Coupler Efficiency 2925 | -8/Garrison | Build established: Bothacker-Mutant 2963 | -8/Garrison | Rescued a captive Derelict 2964 | -8/Garrison | Rescued a captive Derelict 2996 | -8/Garrison | Triggered checkpoint 3132 | -8/Garrison | Triggered checkpoint 3197 | -8/Garrison | Garrison Relay disabled 3260 | -8/Garrison | Expanded RIF knowledge: Program Shield 3440 | -8/Garrison | Triggered checkpoint 3452 | -8/Garrison | Destroyed by G-50 Soldier with Heavy Laser Last Messages --------------- 03268_ > XPT:F4J9,DT=|JUGCAO,O#E 03268_ Attempting to rewire Y-45 Defender. 03271_ Y-45 Defender rewired. 03273_ Attempting to rewire Y-45 Defender. 03291_ Y-45 Defender rewired. 03294_ Attempting to rewire Y-45 Defender. 03299_ Y-45 Defender rewired. 03315_ System corrupted: Matter fused (-9). 03321_ Acquired 1 matter. 03330_ Acquired 3 matter. 03341_ Acquired 5 matter. 03360_ System corrupted: Matter fused (-7). 03379_ System corrupted: Component data lost. Garrison Door activated. 03448_ C-45 Heavy ARC bursts open, deploying its payload. 03448_ G-50 Soldier unfolds itself. 03448_ G-47 Trooper unfolds itself. 03449_ Defender 3a destroyed. 03450_ Critical hit (Burn: +37). 03452_ G-47 Trooper destroyed. Map ----- +----------------------------------------------------+ | ?????????????????????????????????????????????????? | | ?????????????????????????????????????????????????? | | ?????????????????????????????????????????????????? | | ?????????????????????????????????????????????????? | | ?????????????????????????????????????????????????? | | ?????????????????????????????????????????????????? | | ?????????????????????????????????????????????????? | | ?????????????????????????????????????????????????? | | ?????????????????????????????????????????????????? | | ??????????????????????? ???????????????????????? | | ??????????????????????# ???????????????????????? | | ?????????????????????## ##?????????????????????? | | ?????????????????????? ?????????????????????? | | ?????????????????????? ?????????????????????? | | ?????????????????????? ?????????????????????? | | ?????????????????????? ?????????????????????? | | ??????????????????????# ??????????????????????? | | ??????????????????????*% #?????????????????????? | | ?????????????????????? g ?????????????????????? | | ??????????????????????? g ??????????????????????? | | ??????????????????????? %g??????????????????????? | | ???????????????????????# ! ??????????????????????? | | ???????????????????????# #??????????????????????? | | ???????????????????????# #??????????????????????? | | ???????????????????????# #??????????????????????? | | ???????????????????????# @#??????????????????????? | | ??##???????????????????# #??????????????????????? | | ??# #??????????????????# #??????????????????????? | | ?##"####################Y #??????????????????????? | | ?#" #??????????????????????? | | ?## #??????????????????????? | | ??# ########## ########;#??????????????????????? | | ??# #????????# #?????# #??????????????????????? | | ??# #???????" ????# #??????????????????????? | | ??# #??????"! ???# #??????????????????????? | | ??#![#?????#"! !??# #??????????????????????? | | ??#%%#?????#"! !"?# #??????????????????????? | | ??#[%#?????#"! !"## #??????????????????????? | | ??#% #?????#"! !"## #??????????????????????? | | ??#!!###???#"! !"## #??????????????????????? | | ?##= ##??#"" ""## #??????????????????????? | | ?#" "#???"""!!!!"""## #??????????????????????? | | ?## ##????""""""""??# #??????????????????????? | | ??# ###??????######???# #??????????????????????? | | ??# "#????????????????# #??????????????????????? | | ??# ##????????????????# #??????????????????????? | | ??# #?????????????????# #??????????????????????? | | ??# #?????????????????# #??????????????????????? | | #?# #?????????????????# #??????????????????????? | | #?# #?????????????????# #??????????????????????? | +----------------------------------------------------+ Best States ------------- Heat Dissipation 73 Energy Generation 15 Energy Capacity 250 Matter Stores 300 Matter Capacity 300 Sight Range 16 Terrain Scan Density 10 Armor Coverage 525 Evasion (%) 55 Recoil Reduction 4 Particle Charging 15 Relay Coupler Types 1 Relay Coupler Value 29 Item Schematics ----------------- None Robot Schematics ------------------ None Fabricated ------------ Nothing Repaired ---------- Nothing Studied --------- None Alien Tech Used ----------------- None Achievements -------------- None Challenges ------------ None Game ------ Seed BombWardroneMiniperforator Manual? 0 Play Time 00:25:55 Cumulative 629.9 hours Start 2026.03.27 @ 13:03:19 End 2026.03.27 @ 13:32:05 Sessions 1 Manual Loads 0 Difficulty Rogue Special Mode None Game No. 749 Rogue 749 Adventurer 0 Explorer 0 Win Type - Total 22 Types 15/0/5/1/0/0/1/0/0/0 Lore% 88 Gallery% 81 Achievement% 68 Wizard Run 0 Options --------- Layout 0 ASCII 0 Keyboard 0 Movement Numpad Keybinds 0 Fullscreen 1 Font 18/SmallcapsGlow Map View 76x50 Zoom Use 0% Tactical HUD 1 Map Filters NONE Filters NONE Steam 1 RUN: 1f10fdbe-7536-4d6d-b91f-494d4ec5e743